Cogmind - Beta 12 @@@ ROGUE MODE // 2024.02.05 @ 10:54:04 Player: Dosh Result: Self-destructed Performance ------------- Evolutions (6) 3000 Regions Visited (14) 2800 Robots Destroyed (225) 1125 Value Destroyed (9431) 9431 Prototype IDs (9) 180 Alien Tech Used (0) 0 Bonus (6689) 6689 TOTAL SCORE: 23225 Bonus ------- High Alert Combat Kills 1883 Follower Combat Kills 1940 Entered Garrisons 800 Used RIF Installer 3000 Friendly Fire -934 Cogmind --------- Core Integrity 763/1150 Matter 191/300 Energy 92/100 System Corruption 5% Temperature Cool (0) Movement Flying (200) Ox2 Location -4/Factory Parts ------- > --- POWER (2) -------- (None) > --- PROPULSION (5) --- Nuclear Pulse Thruster > --- UTILITY (9) ------ Enhanced Optical Array Advanced Transmission Jammer Improved System Shield Relay Coupler [NC] (32) Relay Coupler [NC] (32) Relay Coupler [Swarmer] (22) Relay Coupler [Grunt] (33) Relay Coupler [Grunt] (10) System Restoration Module > --- WEAPON (3) ------- Gamma Bomb Array > --- INVENTORY (5) ---- Relay Coupler [NC] (29) Heavy Neutron Cannon Peak State ------------ > --- POWER ------------ Reinforced Fission Core > --- PROPULSION ------- Armored Huge Wheel Armored Huge Wheel > --- UTILITY ---------- Improved Cooling System Huge Storage Unit Enhanced Optical Array Improved Transmission Jammer Improved Heavy Armor Plating Relay Coupler [Grunt] Relay Coupler [Hunter] Relay Coupler [Heavy] > --- WEAPON ----------- Heavy Phase Cannon KE Penetrator Mass Driver > --- INVENTORY -------- Improved Deuterium Engine Armored Huge Wheel Hardened Medium Armor Plating Improved Shield Generator Improved System Shield Relay Coupler [NC] Relay Coupler [NC] Relay Coupler [NC] Relay Coupler [Swarmer] Relay Coupler [Grunt] Relay Coupler [Grunt] Relay Coupler [Grunt] Relay Coupler [Sentry] Relay Coupler [Hunter] System Restoration Module Advanced System Restoration Module Long-range Tractor Beam Improved Trap Extractor Enhanced Gauss Cannon Gamma Bomb Array Missile Launcher Remote Datajack Remote Datajack Flail [Rating: 89] Favorites ----------- Power Improved Ion Engine Engine Improved Ion Engine Power Core Reinforced Fission Core Reactor Antimatter Reactor Propulsion Light Treads Treads Light Treads Wheel Armored Huge Wheel Hover Unit Improved Antigrav System Flight Unit Nuclear Pulse Thruster Utility Seismic Detector Device Seismic Detector Storage High-capacity Storage Unit Processor Advanced Targeting Computer Hackware Relay Coupler [Grunt] Protection Hardened Heavy Armor Plating Weapon Heavy EM Shotgun Energy Gun Heavy EM Shotgun Energy Cannon Heavy Phase Cannon Ballistic Gun Heavy Machine Gun Ballistic Cannon Heavy Flak Cannon Launcher Grenade Launcher Special Weapon Remote Datajack Impact Weapon Flail Build | -11 -10 -10 -9 -9 -8 -8 -8 -8 -7 -7 -6 -6 -5 -4 ------- Run | Jun Mat Min Mat Min Mat Gar Mat Gar Fac Gar Fac Gar Fac Fac Slots Evolved 12 | . . . 2 . 2 . . . 2 . 2 . 2 2 Power 1 | . . . . . . . . . . . . . . 1 Propulsion 3 | . . . . . 2 . . . . . . . . 1 Utility 7 | . . . 2 . . . . . 2 . 1 . 2 . Weapon 1 | . . . . . . . . . . . 1 . . . Parts Attached 236 | 8 8 . 28 9 11 3 29 10 14 34 12 12 43 15 Power 19 | 1 2 . 1 . 2 . 1 2 2 2 . 1 3 2 Engine 12 | 1 2 . 1 . 2 . . 1 2 2 . . 1 . Core 6 | . . . . . . . 1 1 . . . 1 2 1 Reactor 1 | . . . . . . . . . . . . . . 1 Propulsion 46 | 2 2 . 6 2 2 2 14 1 3 5 2 . 3 2 Treads 41 | 2 2 . 6 2 2 2 14 1 3 5 . . 2 . Leg . | . . . . . . . . . . . . . . . Wheel 3 | . . . . . . . . . . . 2 . 1 . Hover 1 | . . . . . . . . . . . . . . 1 Flight 1 | . . . . . . . . . . . . . . 1 Utility 79 | 2 2 . 11 3 3 . 6 4 5 11 5 6 15 6 Device 28 | 1 . . 4 1 2 . 1 1 2 2 2 3 7 2 Storage 5 | 1 2 . 1 . . . . . 1 . . . . . Processor 3 | . . . . . . . . 1 . 1 . 1 . . Hackware 20 | . . . . . . . 1 . . 5 3 1 6 4 Protection 23 | . . . 6 2 1 . 4 2 2 3 . 1 2 . Artifact . | . . . . . . . . . . . . . . . Weapon 92 | 3 2 . 10 4 4 1 8 3 4 16 5 5 22 5 Energy Gun 18 | 2 1 . 5 2 2 . 3 1 1 1 . . . . Energy Cannon 2 | . . . . . . . . . . . . . 1 1 Ballistic Gun 21 | 1 1 . 3 2 . 1 1 1 2 7 1 . 1 . Ballistic Cannon 14 | . . . . . . . . . 1 . 1 2 10 . Launcher 14 | . . . 2 . 2 . 3 1 . 2 . . 2 2 Special Weapon 15 | . . . . . . . . . . 4 2 1 7 1 Impact Weapon 8 | . . . . . . . 1 . . 2 1 2 1 1 Slashing Weapon . | . . . . . . . . . . . . . . . Piercing Weapon . | . . . . . . . . . . . . . . . Special Melee Weapon . | . . . . . . . . . . . . . . . Unidentified Prototypes 4 | . . . 2 . . . . . . . . . 1 1 Corrupted Parts 5 | . . . . . . . 3 . . . . . 2 . System Corruption 22 | . . . . . . . 7 . . . . . 15 . Parts Lost 67 | . 2 . 3 7 2 . 5 4 . 13 1 3 20 7 Power 7 | . 1 . . 1 . . 1 1 . . . . 2 1 Propulsion 18 | . . . . 2 1 . 1 1 . 7 . . 4 2 Utility 26 | . . . 3 2 1 . 2 1 . 5 . 2 8 2 Weapon 16 | . 1 . . 2 . . 1 1 . 1 1 1 6 2 Highest Loss Streak 10 | . 2 . 3 7 1 . 5 2 . 4 1 3 10 3 To Critical Strikes 2 | . . . . . 1 . 1 . . . . . . . Average Slot Usage (%) 87 | . 98 100 98 99 83 96 92 91 95 85 72 78 75 37 Engine 6 | . 13 14 11 11 8 9 3 6 7 7 6 1 . . Core 1 | . . . . . . . 5 1 . . . 4 3 . Treads 21 | . 27 28 22 22 21 32 35 35 30 26 1 . . 2 Wheel 2 | . . . . . . . . . . . 11 13 9 . Device 10 | . 14 14 11 21 9 18 9 1 14 5 5 5 13 4 Storage 8 | . 14 14 11 11 9 9 9 9 7 7 6 6 5 4 Processor 2 | . . . . . . . . 6 7 6 6 5 5 5 Hackware 4 | . . . . . . . 3 2 . 8 10 13 12 11 Protection 8 | . . . 19 11 16 9 8 9 11 6 6 6 4 2 Energy Gun 6 | . 14 14 9 9 12 9 8 9 5 3 . . . . Ballistic Gun 8 | . 13 14 10 10 . 7 8 7 7 7 14 9 4 . Ballistic Cannon 1 | . . . . . . . . . 1 . . 7 6 . Naked Turns . | . . . . . . . . . . . . . . . Heaviest Build 147 | 15 31 31 61 62 63 63 77 77 121 126 135 139 147 105 Greatest Support 104 | 40 40 40 40 40 60 80 83 83 104 104 56 56 56 23 Greatest Overweight (x) 32 | . . . 1 1 1 1 1 . 1 3 4 2 29 32 Average Overweight (x) . | . . . . 1 1 . . . . 1 2 2 2 3 Largest Inventory Capacity 25 | 8 15 15 20 20 20 20 20 20 25 25 25 25 25 25 Average Capacity 20 | 7 12 15 18 20 20 20 20 20 22 25 25 25 25 21 Most Carried 25 | 4 9 9 20 20 14 17 20 20 24 25 24 25 25 17 Average Carried 17 | 2 7 9 16 18 9 11 19 18 21 22 22 23 22 13 Final Capacity 25 | 8 15 15 20 20 20 20 20 20 25 25 25 25 25 5 Final Carried 25 | 4 9 9 20 15 9 17 20 18 23 21 24 25 17 2 Class Distribution -------------------- 37% | Mutant 20% | Scavenger-Mutant 16% | Botlord-Mutant 12% | Bothacker-Mutant 10% | Botlord-Tank Dominant Class ---------------- Mutant | -10/Materials Mutant | -10/Mines Scavenger-Mutant | -9/Materials Mutant | -9/Mines Mutant | -8/Materials Mutant | -8/Garrison Scavenger-Mutant | -8/Materials Bothacker-Mutant | -8/Garrison Bothacker-Mutant | -7/Factory Botlord-Mutant | -7/Garrison Botlord-Mutant | -6/Factory Botlord-Tank | -6/Garrison Botlord-Tank | -5/Factory Mutant | -4/Factory Resources | -11 -10 -10 -9 -9 -8 -8 -8 -8 -7 -7 -6 -6 -5 -4 ----------- Run | Jun Mat Min Mat Min Mat Gar Mat Gar Fac Gar Fac Gar Fac Fac Matter Collected 6195 | 255 271 35 701 216 130 100 656 443 143 1160 282 545 1217 41 Remotely . | . . . . . . . . . . . . . . . Salvage Created 8525 | 163 589 59 2035 312 234 . 1031 649 411 1079 308 197 1387 71 Parts 524 | 11 37 4 152 14 19 . 85 32 13 39 27 9 82 . Haulers Intercepted 5 | . . . 4 . . . . . . . . . 1 . Recyclers Shooed 9 | . 1 . 4 . . . 1 . . . 1 . 2 . Parts Field Recycled . | . . . . . . . . . . . . . . . Retrieved Matter . | . . . . . . . . . . . . . . . Parts Self-Destructed . | . . . . . . . . . . . . . . . Prevented . | . . . . . . . . . . . . . . . Kills | -11 -10 -10 -9 -9 -8 -8 -8 -8 -7 -7 -6 -6 -5 -4 ------- Run | Jun Mat Min Mat Min Mat Gar Mat Gar Fac Gar Fac Gar Fac Fac Combat Hostiles Destroyed 176 | . 11 1 37 13 7 . 27 16 6 22 9 5 20 2 Guns 118 | . 10 1 29 13 6 . 17 9 5 12 8 4 4 . Cannons 14 | . . . . . . . . . 1 . . 1 12 . AOE 37 | . 1 . 8 . 1 . 10 7 . 7 . . 3 . Classes Destroyed 21 | 2 6 . 4 1 1 . 2 . 1 1 . 1 2 . Worker 7 | . 1 . . 1 . . 2 . . . . . 3 . Builder 12 | . 1 . 3 . . . 3 . . . . . 5 . Tunneler 9 | 5 . . 2 . . . 1 . . . 1 . . . Hauler 5 | . . . 4 . . . . . . . . . 1 . Recycler 6 | 1 1 . 3 . . . . . 1 . . . . . Mechanic 1 | . . . . . . . . . . . . . 1 . Operator 4 | . 1 . 1 . . . 1 . . . . 1 . . Watcher 9 | . 2 . 4 . . . 2 . . 1 . . . . Swarmer 32 | . 3 . 6 3 3 . 10 . . . 5 2 . . Cutter 1 | . . . . . . . . . . 1 . . . . Saboteur 1 | . . . . . . . . . . . . . 1 . Grunt 67 | . 8 1 19 . . . 9 9 2 9 1 . 9 . Brawler 7 | . . . 2 . . . 2 . . 2 . . 1 . Duelist 5 | . . . . . . . 1 . 1 1 . 1 1 . Protector 2 | . . . 1 . . . 1 . . . . . . . Sentry 29 | . . . 9 2 2 . 3 3 2 8 . . . . Demolisher 1 | . . . . . . . . . . . . 1 . . Hunter 12 | . . . . . 2 . 2 4 . 1 . . 3 . Programmer 13 | . . . . . . . . . 1 . 3 . 7 2 Heavy 1 | . . . . . . . 1 . . . . . . . Assembled 8 | . . . . 8 . . . . . . . . . . Savage 1 | . . . . . . . . . . . . 1 . . Best Kill Streak 7 | 3 4 1 6 3 3 . 5 5 3 4 3 2 7 1 Combat Bots Only 5 | . 3 1 5 3 3 . 5 5 3 4 3 2 3 1 Max Kills in Single Turn 7 | 1 1 1 3 2 1 . 2 3 1 3 1 1 7 1 Gunslinging 1 | . . . 1 1 . . . . . . . . . . Exploded 3 | . 1 . 3 . 1 . 2 3 . 3 . . 3 . Melee . | . . . . . . . . . . . . . . . Uniques/NPCs Destroyed . | . . . . . . . . . . . . . . . Combat | -11 -10 -10 -9 -9 -8 -8 -8 -8 -7 -7 -6 -6 -5 -4 -------- Run | Jun Mat Min Mat Min Mat Gar Mat Gar Fac Gar Fac Gar Fac Fac Damage Taken 14888 | . 483 . 1297 618 422 15 1909 1130 738 3128 245 702 3244 957 Core 1842 | . 67 . 191 42 18 . 110 120 39 175 34 37 622 387 Absorbed by Shields 807 | . . . 77 98 160 6 103 . . . . 136 227 . Regen/Repaired (Parts) 950 | . 229 . . . 187 . 534 . . . . . . . Core Remaining (%) 66 | 100 . 73 . 41 . . . 54 . 69 . 91 37 . Volleys Fired 619 | 12 59 3 120 33 22 6 79 33 26 92 26 25 83 . Largest 3 | 2 2 2 2 2 2 2 2 2 2 2 3 3 3 . Hottest 180 | 60 60 60 79 111 111 78 78 86 78 80 113 127 180 . Shots Fired 1178 | 24 115 5 222 66 37 10 133 63 52 158 45 69 179 . Gun 944 | 24 115 5 215 66 29 10 123 49 47 145 32 32 52 . Cannon 152 | . . . . . . . . . 5 . 3 36 108 . Launcher 47 | . . . 7 . 8 . 10 14 . 6 . . 2 . Special 35 | . . . . . . . . . . 7 10 1 17 . Kinetic 684 | 12 57 3 112 28 . 6 74 19 31 121 35 68 118 . Thermal 157 | . 7 2 88 5 13 . . . . . . . 42 . Explosive 45 | . . . 7 . 8 . 10 14 . 6 . . . . Electromagnetic 257 | 12 51 . 15 33 16 4 49 30 21 24 . . 2 . Robot Hit Streak 26 | 6 8 4 12 16 10 . 14 11 15 26 13 5 10 . Robot Miss Streak 11 | 3 5 2 6 4 2 . 5 4 4 3 3 11 4 . Penetration Max 1 | . . . . . . . 1 1 . . . . 1 . Secondary Targets 14 | . 2 . 4 3 . . 2 . 1 2 . . . . Max Gunslinging Chain 1 | . 1 . 1 1 . . 1 . 1 1 . . . . Shots Hit Robots 721 | 13 66 3 131 40 29 . 97 26 46 111 29 22 93 15 Core Hits 420 | 7 27 2 85 24 12 . 63 40 22 47 11 19 59 2 Critical Kills 1 | . . . . . . . . . . . . . 1 . Critical Parts Destroyed 8 | . . . . 1 . . . . . 3 1 . . 3 Critical Strikes 22 | . 1 . 6 1 . . . . . 3 1 . 7 3 Burn 6 | . . . 6 . . . . . . . . . . . Destroy 4 | . . . . 1 . . . . . 1 1 . 1 . Blast 6 | . . . . . . . . . . . . . 6 . Corrupt 1 | . 1 . . . . . . . . . . . . . Smash 5 | . . . . . . . . . . 2 . . . 3 Melee Attacks 44 | . . . . . . . 1 . . 15 2 6 1 19 Impact 44 | . . . . . . . 1 . . 15 2 6 1 19 Slashing . | . . . . . . . . . . . . . . . Piercing . | . . . . . . . . . . . . . . . Sneak Attacks 3 | . . . . . . . . . . 1 2 . . . Combat Hostiles 1 | . . . . . . . . . . 1 . . . . Follow-up Attacks . | . . . . . . . . . . . . . . . Damage Inflicted 20869 | 191 1045 56 2712 722 769 . 3466 1529 1038 3113 624 470 4547 587 Guns 11161 | 191 891 31 2079 716 453 . 1843 453 816 2053 412 283 940 . Cannons 2178 | . . . . . . . . . 91 . 22 187 1878 . Explosions 6333 | . 150 . 584 . 316 . 1619 1021 131 836 . . 1676 . Melee 968 | . . . . . . . . . . 224 157 . . 587 Ramming 229 | . 4 25 49 6 . . 4 55 . . 33 . 53 . Kinetic 8139 | 107 457 21 897 194 . . 1023 135 498 1737 434 470 2166 . Thermal 3659 | . 194 10 965 60 232 . 271 269 131 66 . . 1461 . Explosive 4030 | . . . 493 . 252 . 1348 752 . 770 . . 415 . Electromagnetic 3844 | 84 390 . 308 462 285 . 820 318 409 316 . . 452 . Impact 968 | . . . . . . . . . . 224 157 . . 587 Slashing . | . . . . . . . . . . . . . . . Piercing . | . . . . . . . . . . . . . . . Highest Corruption 29 | . . . 3 19 . . 7 7 1 7 1 10 29 7 Average Corruption 5 | . . . 2 3 . . 6 7 1 5 1 9 9 6 Corruption Purged 3 | . . . . . . . . . . . . 1 . 2 Corruption Blocked . | . . . . . . . . . . . . . . . Effects 244 | . . . 28 20 . . 38 32 1 71 2 17 28 7 Message Errors 45 | . . . 6 3 . . 8 4 . 18 . 4 1 1 Matter Fused 64 | . . . 6 3 . . 9 11 . 18 1 5 7 4 Heat Flow Errors 31 | . . . 2 4 . . 4 5 . 11 1 . 3 1 Energy Discharges 27 | . . . 3 4 . . 7 1 . 7 . 2 3 . Parts Rejected 2 | . . . 1 . . . . 1 . . . . . . Parts Fused 5 | . . . 1 1 . . . 1 1 . . 1 . . Data Loss (minor) 36 | . . . 5 5 . . 5 5 . 7 . 1 8 . Data Loss (major) 13 | . . . 1 . . . 3 2 . 2 . 2 3 . Misfires 7 | . . . 1 . . . 2 2 . 1 . . 1 . Alerts 6 | . . . 1 . . . . . . 3 . 1 . 1 Misdirections 1 | . . . . . . . . . . . . . 1 . Weapon Failures 7 | . . . 1 . . . . . . 4 . 1 1 . Overload Shots . | . . . . . . . . . . . . . . . Overflow Damage 541 | . 27 . . . . . 12 . . 104 22 . 186 190 Projectiles 59 | . . . . . . . . . . . . . 59 . Explosions 236 | . 27 . . . . . 12 . . 70 . . 127 . Melee 246 | . . . . . . . . . . 34 22 . . 190 Knockbacks 19 | . . . 1 . . . . . . 1 4 2 11 . Impact 4 | . . . 1 . . . . . . 1 2 . . . Kinetic 14 | . . . . . . . . . . . 2 2 10 . Secondary 1 | . . . . . . . . . . . . . 1 . Self-Inflicted Damage 1296 | . . . 120 . 27 . 278 212 106 208 16 . 329 . Shots 38 | . . . 6 . 4 . 6 5 2 4 . . 11 . Rammed 33 | . 1 2 8 2 . . . 14 . . 1 . 5 . Targets Rammed 35 | . 1 2 9 2 . . 1 14 . . 1 . 5 . Kicked . | . . . . . . . . . . . . . . . Crushed 2 | . . . 1 . . . 1 . . . . . . . Highest Temperature 575 | . 54 6 324 575 271 18 247 276 207 303 167 244 431 199 Average Temperature 76 | . 21 3 69 124 92 10 48 72 73 90 32 72 107 117 Received Heat Transfer 2665 | . 213 . 371 88 49 6 366 282 219 795 18 . 258 . Effects 15 | . . . 2 9 1 . . 2 . 1 . . . . Shutdowns 1 | . . . . 1 . . . . . . . . . . Energy Bleed 4 | . . . 2 . 1 . . . . 1 . . . . Interference 5 | . . . . 3 . . . 2 . . . . . . Damage (minor) 1 | . . . . 1 . . . . . . . . . . Damage (major) 4 | . . . . 4 . . . . . . . . . . Siege Activations . | . . . . . . . . . . . . . . . Robots Corrupted 2 | . . . . . . . . . . 1 . . 1 . Combat Hostiles 2 | . . . . . . . . . . 1 . . 1 . Parts Fried 16 | . 2 . 1 2 2 . 1 1 1 4 . . 2 . Impact Corruptions 14 | . . . . . . . . . . 2 1 . . 11 Robots Melted . | . . . . . . . . . . . . . . . Combat Hostiles . | . . . . . . . . . . . . . . . Parts Melted 8 | . . . 2 . . . . . 1 1 . . 4 . Heat Transferred 5392 | . 250 25 2731 111 346 . 300 300 100 50 . . 1179 . Parts Sabotaged . | . . . . . . . . . . . . . . . Parts Stolen . | . . . . . . . . . . . . . . . Parts Stripped . | . . . . . . . . . . . . . . . Power Chain Reactions 16 | . 2 . 2 . 1 . 4 3 2 1 . . 1 . Missiles Intercepted . | . . . . . . . . . . . . . . . Alert | -11 -10 -10 -9 -9 -8 -8 -8 -8 -7 -7 -6 -6 -5 -4 ------- Run | Jun Mat Min Mat Min Mat Gar Mat Gar Fac Gar Fac Gar Fac Fac Peak Influence 1518 | 30 256 199 637 303 114 511 1007 1181 787 1518 933 641 909 378 Initial 796 | . 19 75 . 248 . 65 248 518 619 345 796 176 336 378 Average 480 | 13 120 52 348 167 28 278 713 994 641 771 715 397 565 284 Maximum Alert Level 4 | . 1 . 2 1 . 2 3 4 3 4 3 2 3 1 Low Security (%) 25 | 100 91 100 19 62 100 26 . . . . . 6 1 41 Level 1 23 | . 8 . 40 37 . 55 12 . . 20 15 46 33 58 Level 2 21 | . . . 39 . . 17 22 12 72 23 . 47 34 . Level 3 24 | . . . . . . . 65 48 27 39 83 . 30 . Level 4 4 | . . . . . . . . 38 . 15 . . . . Level 5 . | . . . . . . . . . . . . . . . High Security . | . . . . . . . . . . . . . . . Max Security . | . . . . . . . . . . . . . . . Squads Dispatched 36 | . 3 . 6 . . . 6 . 4 . 3 . 13 1 Investigation 8 | . 2 . 4 . . . 1 . . . . . 1 . Extermination 8 | . . . . . . . . . 1 . 2 . 4 1 Reinforcement 11 | . 1 . 1 . . . 4 . . . 1 . 4 . Assault 8 | . . . 1 . . . 1 . 2 . . . 4 . Garrison 1 | . . . . . . . . . 1 . . . . . Intercept . | . . . . . . . . . . . . . . . Searches Triggered . | . . . . . . . . . . . . . . . Construction Impeded 2 | . . . . . . . . . . . . . 2 . Haulers Reinforced 1 | . . . . . . . . . . . . . 1 . Active Scanning Responses . | . . . . . . . . . . . . . . . Cargo Convoy Interrupts . | . . . . . . . . . . . . . . . Alert ID Control Effect 15 | . . . . . . . . . . 4 2 5 4 . Stealth | -11 -10 -10 -9 -9 -8 -8 -8 -8 -7 -7 -6 -6 -5 -4 --------- Run | Jun Mat Min Mat Min Mat Gar Mat Gar Fac Gar Fac Gar Fac Fac Distress Signals 10 | . . . 5 . . . 4 . . . . . 1 . Communications Jammed 25 | . . . . . . . . . . . . . 25 . Distress Signals 25 | . . . . . . . . . . . . . 25 . Times Spotted 324 | . 23 2 52 16 7 . 60 17 6 41 15 13 65 7 Peak Tracking Total 6 | . 2 2 5 3 2 . 5 5 3 6 4 2 6 5 Tactical Retreats 10 | . . . . . 1 . 1 1 . 3 . . 3 1 Traps | -11 -10 -10 -9 -9 -8 -8 -8 -8 -7 -7 -6 -6 -5 -4 ------- Run | Jun Mat Min Mat Min Mat Gar Mat Gar Fac Gar Fac Gar Fac Fac Traps Triggered 18 | . . . 2 . . 1 1 1 . 10 . 1 2 . Indirectly . | . . . . . . . . . . . . . . . Trap Hack Attempts . | . . . . . . . . . . . . . . . Triggered . | . . . . . . . . . . . . . . . Disarmed . | . . . . . . . . . . . . . . . Reprogrammed . | . . . . . . . . . . . . . . . Reused 1 | . . . . . . . 1 . . . . . . . Traps Extracted . | . . . . . . . . . . . . . . . Installed 4 | . . . . . . . 4 . . . . . . . Triggered 2 | . . . . . . . 1 . . . . . 1 . Most Traps Carried 4 | . . . . . . 4 4 . . . . . . . Machines | -11 -10 -10 -9 -9 -8 -8 -8 -8 -7 -7 -6 -6 -5 -4 ---------- Run | Jun Mat Min Mat Min Mat Gar Mat Gar Fac Gar Fac Gar Fac Fac Machines Disabled 41 | . 1 . . . 1 3 7 4 1 5 . 6 13 . Max in Single Turn 3 | . 1 . . . 1 1 2 1 1 1 . 1 3 . Garrison Access 1 | . . . . . . . . . . . . . 1 . Garrison Relay 9 | . . . . . . 2 . 3 . 2 . 2 . . Machines Repaired . | . . . . . . . . . . . . . . . Machines Sabotaged . | . . . . . . . . . . . . . . . Overloaded Fab Kills . | . . . . . . . . . . . . . . . Hacking | -11 -10 -10 -9 -9 -8 -8 -8 -8 -7 -7 -6 -6 -5 -4 --------- Run | Jun Mat Min Mat Min Mat Gar Mat Gar Fac Gar Fac Gar Fac Fac Machines Accessed 49 | . 8 . 10 . 3 3 10 3 3 1 3 1 4 . Terminals 32 | . 5 . 8 . 1 3 6 3 . 1 1 1 3 . Fabricators 2 | . . . . . . . . . . . 1 . 1 . Repair Stations 5 | . 1 . 1 . 1 . 2 . . . . . . . Recycling Units 3 | . 2 . . . . . . . 1 . . . . . Scanalyzers 3 | . . . 1 . . . 1 . 1 . . . . . Garrison Access 4 | . . . . . 1 . 1 . 1 . 1 . . . Total Hacks 132 | . 20 . 28 . 13 6 33 5 5 2 6 1 13 . Successful 73 | . 14 . 10 . 11 4 20 1 3 1 3 1 5 . Failed 58 | . 5 . 18 . 2 2 13 4 2 1 3 . 8 . Catastrophic 10 | . . . 1 . . . 5 2 . . . . 2 . Database Lockouts 1 | . 1 . . . . . . . . . . . . . Manual 62 | . 11 . 17 . 2 3 16 . . . 2 . 11 . Terminals 83 | . 11 . 24 . 4 6 17 5 . 2 2 1 11 . Fabricators 5 | . . . . . . . . . . . 3 . 2 . Repair Stations 27 | . 7 . 2 . 8 . 10 . . . . . . . Recycling Units 4 | . 2 . . . . . . . 2 . . . . . Scanalyzers 8 | . . . 2 . . . 4 . 2 . . . . . Garrison Access 5 | . . . . . 1 . 2 . 1 . 1 . . . Terminal Hacks 23 | . 3 . 6 . 2 3 5 1 . 1 . 1 1 . Robot Analysis 4 | . 1 . 3 . . . . . . . . . . . Prototype ID Bank 3 | . . . 2 . . . 1 . . . . . . . Open Door 1 | . . . . . . 1 . . . . . . . . Emergency Access Points 4 | . 1 . . . . 1 . 1 . 1 . . . . Terminal Index 1 | . . . . . 1 . . . . . . . . . Alert Level 1 | . . . . . . . 1 . . . . . . . Unreport Threat 5 | . . . . . 1 . 3 . . . . . 1 . Hauler Manifests 2 | . 1 . 1 . . . . . . . . . . . Garrison Registry 2 | . . . . . . 1 . . . . . 1 . . Fabricator Hacks 3 | . . . . . . . . . . . 1 . 2 . Network Status 2 | . . . . . . . . . . . 1 . 1 . Build 1 | . . . . . . . . . . . . . 1 . Repair Station Hacks 20 | . 6 . 1 . 6 . 7 . . . . . . . Scan Component 11 | . 3 . 1 . 3 . 4 . . . . . . . Repair 9 | . 3 . . . 3 . 3 . . . . . . . Recycling Unit Hacks . | . . . . . . . . . . . . . . . Scanalyzer 8 | . . . 2 . . . 4 . 2 . . . . . Insert Component 4 | . . . 1 . . . 2 . 1 . . . . . Analyze 4 | . . . 1 . . . 2 . 1 . . . . . Garrison Access Hacks 4 | . . . . . 1 . 1 . 1 . 1 . . . Unlock Access 4 | . . . . . 1 . 1 . 1 . 1 . . . Unauthorized Hacks 15 | . 5 . 1 . 2 1 3 . . . 1 . 2 . Terminals 12 | . 3 . 1 . 2 1 2 . . . 1 . 2 . Botnet 8 | . 2 . 1 . 1 . 1 . . . 1 . 2 . Operators 3 | . 1 . . . 1 . 1 . . . . . . . Override 1 | . . . . . . 1 . . . . . . . . Fabricators . | . . . . . . . . . . . . . . . Repair Stations . | . . . . . . . . . . . . . . . Recycling Units 2 | . 2 . . . . . . . . . . . . . Tunnel 2 | . 2 . . . . . . . . . . . . . Scanalyzers . | . . . . . . . . . . . . . . . Garrison Access 1 | . . . . . . . 1 . . . . . . . Watchers 1 | . . . . . . . 1 . . . . . . . Data Cores Recovered . | . . . . . . . . . . . . . . . Used . | . . . . . . . . . . . . . . . Hacking Detections 37 | . 4 . 9 . 2 2 8 2 2 1 3 . 4 . Full Trace Events 7 | . 1 . 4 . . . 1 . . . . . 1 . Feedback Events 1 | . . . 1 . . . . . . . . . . . Corruption 1 | . . . 1 . . . . . . . . . . . Feedback Blocked . | . . . . . . . . . . . . . . . Robot Schematics Acquired . | . . . . . . . . . . . . . . . Robots Built . | . . . . . . . . . . . . . . . Authchips . | . . . . . . . . . . . . . . . Time . | . . . . . . . . . . . . . . . Total Robot Build Rating . | . . . . . . . . . . . . . . . Part Schematics Acquired 4 | . . . 1 . . . 2 . 1 . . . . . Parts Built 1 | . . . . . . . . . . . . . 1 . Authchips . | . . . . . . . . . . . . . . . Time 64 | . . . . . . . . . . . . . 64 . Total Part Build Rating 8 | . . . . . . . . . . . . . 8 . Parts Repaired 9 | . 3 . . . 3 . 3 . . . . . . . Time 298 | . 78 . . . 94 . 126 . . . . . . . Parts Recycled . | . . . . . . . . . . . . . . . Recycled Matter . | . . . . . . . . . . . . . . . Retrieved Matter . | . . . . . . . . . . . . . . . Retrieved Components . | . . . . . . . . . . . . . . . Parts Scanalyzed 4 | . . . 1 . . . 2 . 1 . . . . . Part Schematics Acquired 4 | . . . 1 . . . 2 . 1 . . . . . Parts Damaged . | . . . . . . . . . . . . . . . Bothacking | -11 -10 -10 -9 -9 -8 -8 -8 -8 -7 -7 -6 -6 -5 -4 ------------ Run | Jun Mat Min Mat Min Mat Gar Mat Gar Fac Gar Fac Gar Fac Fac Used RIF Installer 6 | . . . . . . 2 . 1 . 2 . 1 . . Coupler Efficiency 1 | . . . . . . . . . . 1 . . . . Command Fork 1 | . . . . . . . . . . . . 1 . . Alert ID Control 1 | . . . . . . 1 . . . . . . . . Program Shield 1 | . . . . . . . . 1 . . . . . . Autooverride 1 | . . . . . . . . . . 1 . . . . Robots Hacked 30 | . . . . . . . . . . 7 4 4 15 . Non-combat 1 | . . . . . . . . . . . 1 . . . Combat 29 | . . . . . . . . . . 7 3 4 15 . Autooverrided 7 | . . . . . . . . . . 1 . 3 3 . Robot Hacks Applied 29 | . . . . . . . . . . 6 10 1 12 . purge_threat 6 | . . . . . . . . . . . 6 . . . spike_heat 1 | . . . . . . . . . . . . . 1 . reboot_system 1 | . . . . . . . . . . . . . 1 . go_dormant 1 | . . . . . . . . . . 1 . . . . overwrite_iff 2 | . . . . . . . . . . . 1 . 1 . streamctrl_high 1 | . . . . . . . . . . . . . 1 . formatsys_low 1 | . . . . . . . . . . . 1 . . . formatsys_high 16 | . . . . . . . . . . 5 2 1 8 . Relay Couplers Released 37 | . . . . . . 8 . 13 . 8 . 8 . . Machine Destruction 37 | . . . . . . 8 . 13 . 8 . 8 . . Attached 17 | . . . . . . . . . . 4 3 1 6 3 Fabnet Peak Effective % . | . . . . . . . . . . . . . . . Robots Rewired 11 | . . . . . . 3 . . . 8 . . . . Allies Hacked 1 | . . . . . . . . . . . 1 . . . Hacks Repelled . | . . . . . . . . . . . . . . . Allies | -11 -10 -10 -9 -9 -8 -8 -8 -8 -7 -7 -6 -6 -5 -4 -------- Run | Jun Mat Min Mat Min Mat Gar Mat Gar Fac Gar Fac Gar Fac Fac Total Allies 47 | . . 3 . . . 4 . . . 14 4 6 16 . Largest Group 5 | . . 3 1 . . 4 4 . . 3 3 5 4 . Highest-Rated Group 236 | . . 40 16 . . 88 88 . . 122 87 213 236 . Highest-Rated Ally 137 | . . 16 16 . . 31 31 . . 90 32 95 137 . Total Orders 4 | . . . . . . 2 . . . . 2 . . . STAY 1 | . . . . . . 1 . . . . . . . . FOLLOW 1 | . . . . . . 1 . . . . . . . . EXPLORE 2 | . . . . . . . . . . . 2 . . . Ally Attacks 320 | . . 33 4 . . 7 75 . . 46 9 40 106 . Total Damage 7674 | . . 265 42 . . 150 1329 . . 1125 223 1244 3296 . Kills 66 | . . 5 . . . 2 20 . . 8 3 8 20 . Allies Corrupted 2 | . . . . . . . . . . . . 1 1 . Allies Melted . | . . . . . . . . . . . . . . . Intel | -11 -10 -10 -9 -9 -8 -8 -8 -8 -7 -7 -6 -6 -5 -4 ------- Run | Jun Mat Min Mat Min Mat Gar Mat Gar Fac Gar Fac Gar Fac Fac Robot Analysis Total 4 | . 1 . 3 . . . . . . . . . . . Derelict Logs Recovered . | . . . . . . . . . . . . . . . Drone Launches 2 | . . . . . . . . . . . 2 . . . Drone Recoveries . | . . . . . . . . . . . . . . . Exploration | -11 -10 -10 -9 -9 -8 -8 -8 -8 -7 -7 -6 -6 -5 -4 ------------- Run | Jun Mat Min Mat Min Mat Gar Mat Gar Fac Gar Fac Gar Fac Fac Turns Passed 18187 | 228 1152 727 2222 1079 905 901 2158 976 807 2668 732 795 2128 709 Spaces Moved 8066 | 113 528 448 823 310 291 493 1034 484 331 868 456 513 1191 183 Core 15 | 3 . . . . . . . . . . . . 1 11 Treads 5832 | 110 528 448 823 310 291 493 1034 484 331 868 14 . 23 75 Legs . | . . . . . . . . . . . . . . . Wheels 2122 | . . . . . . . . . . . 442 513 1167 . Hover 11 | . . . . . . . . . . . . . . 11 Flight 86 | . . . . . . . . . . . . . . 86 Fastest Speed 40 | 50 160 160 160 240 240 160 156 167 162 240 130 130 115 40 Average Speed 181 | 157 160 160 211 240 240 171 166 167 200 254 138 130 137 311 Slowest Speed 1650 | 160 160 160 240 240 240 240 243 167 242 400 400 130 1500 1650 Overloaded Moves . | . . . . . . . . . . . . . . . Propulsion Burnouts . | . . . . . . . . . . . . . . . Robots Hopped . | . . . . . . . . . . . . . . . Cave-ins Triggered 1 | . . . . . . . . . . . . 1 . . Exploration Rate (%) 52 | 8 93 91 79 36 21 80 89 65 11 84 28 55 39 4 Regions Visited 14 Branch Regions 2 Pre-discovered Areas 2 | . 2 . . . . . . . . . . . . . Known Exits Taken 4 | . . . . . 1 . 1 . 1 . 1 . . . Unknown Exits Taken 6 | 1 1 1 1 1 . . . . . . . . 1 . Scrap Searched 3 | . . 2 . 1 . . . . . . . . . . Spaces Dug 2 | . . . . . . . 1 . . . . . 1 . Terrain Destroyed 405 | . 8 . 52 . 23 1 82 80 12 48 . . 99 . Melee 2 | . . . . . . . 1 . . . . . 1 . Projectile 65 | . . . . . . 1 3 1 . 1 . . 59 . AOE 338 | . 8 . 52 . 23 . 78 79 12 47 . . 39 . Terrain Rammed . | . . . . . . . . . . . . . . . Walls Destroyed . | . . . . . . . . . . . . . . . Machines Disabled . | . . . . . . . . . . . . . . . Actions | -11 -10 -10 -9 -9 -8 -8 -8 -8 -7 -7 -6 -6 -5 -4 --------- Run | Jun Mat Min Mat Min Mat Gar Mat Gar Fac Gar Fac Gar Fac Fac Total 10384 | 136 718 452 1073 586 459 537 1337 578 426 1152 516 580 1543 291 Wait 1089 | . 115 . 61 223 135 . 154 27 38 70 6 3 187 70 Move 8054 | 112 527 447 822 309 290 492 1034 483 330 867 456 511 1191 183 Hop . | . . . . . . . . . . . . . . . Pick Up 96 | 3 6 . 12 3 1 7 14 6 5 12 7 9 11 . Fast Attach 68 | 8 3 . 9 . 2 3 10 1 5 4 3 2 11 7 Attach 63 | . 2 . 4 3 6 . 1 5 1 11 3 2 17 8 Detach 26 | 1 . . 7 . . 1 1 . 3 4 2 . 6 1 Swap 106 | . 3 . 15 6 3 . 18 4 8 19 6 8 16 . Drop 82 | . 2 . 14 7 . . 20 1 10 7 2 6 10 3 Fire 619 | 12 59 3 120 33 22 6 79 33 26 92 26 25 83 . Melee 44 | . . . . . . . 1 . . 15 2 6 1 19 Ram 3 | . . . . . . . . . . . 1 . 2 . Kick . | . . . . . . . . . . . . . . . Crush 31 | . 1 2 9 2 . . 1 14 . . . . 2 . Escape Stasis 26 | . . . . . . . . . . 18 . 8 . . Rewire 73 | . . . . . . 28 . 4 . 33 2 . 6 . Trap 4 | . . . . . . . 4 . . . . . . . Miscellaneous . | . . . . . . . . . . . . . . . Route ------- -11/Junkyard -10/Materials (discovered 5 exits: *Mat x3 / [*Min x2]) -10/Mines (discovered 3 exits: *Mat x2 / [*Exi]) -9/Materials (discovered 4 exits: *Mat x2 / [*Min x2]) -9/Mines -8/Materials (discovered 2 exits: *Fac / Gar) -8/Garrison (discovered 4 exits: *Mat x4) -8/Materials (discovered 5 exits: *Fac x3 / [*Sto] / Gar) -8/Garrison (discovered 3 exits: *Fac x3) -7/Factory -7/Garrison (discovered 3 exits: *Fac x3) -6/Factory (discovered 3 exits: [*Low x2] / Gar) -6/Garrison (discovered 3 exits: *Fac x3) -5/Factory (discovered 2 exits: [*Fac] / [*Upp]) -4/Factory History --------- Turn | Location | Event 4 | -11/Junkyard | Discovered new exit (range 16) 229 | -11/Junkyard | Entered Materials 263 | -10/Materials | Discovered new exit (range 14) 306 | -10/Materials | Build established: Mutant 503 | -10/Materials | Discovered new exit (range 8) 606 | -10/Materials | Discovered new exit (range 8) 834 | -10/Materials | Discovered new exit (range 3) 865 | -10/Materials | Central database locked down 911 | -10/Materials | Discovered new exit (range 16) 1088 | -10/Materials | Repaired Assault Rifle 1142 | -10/Materials | Repaired Lgt. Treads 1169 | -10/Materials | Repaired Lgt. Treads 1381 | -10/Materials | Entered Mines 1383 | -10/Mines | Assisted by bots powering up and referring to "LRC-V3" 1404 | -10/Mines | Met a Derelict bent on vengeance 1449 | -10/Mines | Discovered new exit (range 6) 1762 | -10/Mines | Discovered new exit (range 9) 1805 | -10/Mines | Deemed a non-threat by the Exiles lab entrance 2090 | -10/Mines | Discovered new exit (range 12) 2108 | -10/Mines | Entered Materials 2108 | -9/Materials | Accompanied by 1 ally 2108 | -9/Materials | Evolved 2 slots: Utility x2 2478 | -9/Materials | Lost 3 parts (3u) 2793 | -9/Materials | Build established: Scavenger-Mutant 2852 | -9/Materials | Discovered new exit (range 15) 3295 | -9/Materials | Discovered new exit (range 15) 3850 | -9/Materials | Discovered new exit (range 16) 4108 | -9/Materials | First assault squad dispatched 4123 | -9/Materials | Discovered new exit (range 5) 4330 | -9/Materials | Entered Mines 4459 | -9/Mines | Discovered new exit (range 11) 4461 | -9/Mines | A weapon hastily lodged in a ceiling crevice suddenly fell to the ground 4490 | -9/Mines | Core integrity fell below 50% 4824 | -9/Mines | Build established: Mutant 4833 | -9/Mines | Assembled infested the area 4838 | -9/Mines | Assisted by a Guerilla fighting off Assembled 5386 | -9/Mines | System corruption reached 10% 5409 | -9/Mines | Entered Materials 5409 | -8/Materials | Evolved 2 slots: Propulsion x2 5432 | -8/Materials | Lost 7 parts (1p2n2u2w) 5639 | -8/Materials | Repaired Broken Seismic Detector 5719 | -8/Materials | Build established: Scavenger-Mutant 6077 | -8/Materials | Build established: Mutant 6100 | -8/Materials | Repaired Lgt. Treads 6134 | -8/Materials | Repaired Imp. Ion Engine 6290 | -8/Materials | Discovered new exit (range 9) 6297 | -8/Materials | Identified exit to Garrison 6314 | -8/Materials | Entered Garrison 6314 | -8/Garrison | Discovered recently destroyed garrison 6556 | -8/Garrison | Discovered new exit (range 12) 6556 | -8/Garrison | Discovered new exit (range 81) 6556 | -8/Garrison | Discovered new exit (range 48) 6556 | -8/Garrison | Discovered new exit (range 18) 6556 | -8/Garrison | Identified exit to Materials 6623 | -8/Garrison | Rescued a captive Derelict 6758 | -8/Garrison | Installed Relay Interface Framework 6922 | -8/Garrison | Expanded RIF knowledge: Alert ID Control 6933 | -8/Garrison | Garrison Relay disabled 7098 | -8/Garrison | Garrison Relay disabled 7215 | -8/Garrison | Entered Materials 7215 | -8/Materials | Accompanied by 4 allies 7540 | -8/Materials | Discovered new exit (range 11) 8103 | -8/Materials | Discovered new exit (range 8) 8108 | -8/Materials | Discovered new exit (range 16) 8146 | -8/Materials | Lost 5 parts (1p1n2u1w) 8291 | -8/Materials | Repaired Arm. Treads 8336 | -8/Materials | Repaired Gauss Rifle 8491 | -8/Materials | Build established: Scavenger-Mutant 8925 | -8/Materials | Repaired Hrd. Heavy Armor Plating 9058 | -8/Materials | Discovered new exit (range 14) 9215 | -8/Materials | First assault squad dispatched 9373 | -8/Materials | Identified exit to Garrison 9373 | -8/Materials | Entered Garrison 9426 | -8/Garrison | Triggered checkpoint 9427 | -8/Garrison | Garrison Relay disabled 9530 | -8/Garrison | Triggered checkpoint 9536 | -8/Garrison | Triggered checkpoint 9670 | -8/Garrison | Triggered checkpoint 9724 | -8/Garrison | Garrison Relay disabled 9797 | -8/Garrison | Garrison Relay disabled 9876 | -8/Garrison | Discovered new exit (range 12) 9928 | -8/Garrison | Triggered checkpoint 10036 | -8/Garrison | Build established: Bothacker-Mutant 10045 | -8/Garrison | Discovered new exit (range 15) 10095 | -8/Garrison | Spotted B-75 Beast 10095 | -8/Garrison | Spotted B-75 Beast 10313 | -8/Garrison | Discovered new exit (range 9) 10333 | -8/Garrison | Expanded RIF knowledge: Program Shield 10349 | -8/Garrison | Entered Factory 10349 | -7/Factory | Evolved 2 slots: Utility x2 11091 | -7/Factory | Garrison activated, responded to threat 11149 | -7/Factory | First assault squad dispatched 11149 | -7/Factory | Identified exit to Garrison 11156 | -7/Factory | Entered Garrison 11248 | -7/Garrison | Expanded RIF knowledge: Autooverride 11482 | -7/Garrison | Triggered checkpoint 11747 | -7/Garrison | Lost 4 parts (1n3u) 11762 | -7/Garrison | Triggered checkpoint 11764 | -7/Garrison | Triggered checkpoint 11863 | -7/Garrison | Discovered new exit (range 8) 11934 | -7/Garrison | Triggered checkpoint 11977 | -7/Garrison | Garrison Relay disabled 12292 | -7/Garrison | Build established: Botlord-Mutant 12338 | -7/Garrison | Heavy support dispatched to Factory 12339 | -7/Garrison | Discovered new exit (range 13) 12468 | -7/Garrison | Triggered checkpoint 12582 | -7/Garrison | Triggered checkpoint 12670 | -7/Garrison | Discovered new exit (range 8) 13012 | -7/Garrison | Heavy support dispatched to Factory 13083 | -7/Garrison | H-XX Assembler disabled 13428 | -7/Garrison | Triggered checkpoint 13631 | -7/Garrison | Expanded RIF knowledge: Coupler Efficiency 13679 | -7/Garrison | Garrison Relay disabled 13824 | -7/Garrison | Entered Factory 13824 | -6/Factory | Accompanied by 2 allies 13824 | -6/Factory | Evolved 2 slots: Utility x1, Weapon x1 14238 | -6/Factory | Discovered new exit (range 27) 14317 | -6/Factory | Discovered new exit (range 70) 14556 | -6/Factory | Identified exit to Garrison 14556 | -6/Factory | Entered Garrison 14556 | -6/Garrison | Warlord forces raided the area 14556 | -6/Garrison | Accompanied by 3 allies 14580 | -6/Garrison | Warlord forces retreated 14585 | -6/Garrison | Triggered checkpoint 14604 | -6/Garrison | H-XX Assembler disabled 14604 | -6/Garrison | Triggered checkpoint 14684 | -6/Garrison | Triggered checkpoint 14703 | -6/Garrison | Discovered new exit (range 50) 14703 | -6/Garrison | Discovered new exit (range 31) 14703 | -6/Garrison | Discovered new exit (range 55) 14757 | -6/Garrison | Garrison Relay disabled 14767 | -6/Garrison | Triggered checkpoint 14776 | -6/Garrison | Triggered checkpoint 14936 | -6/Garrison | Crushed by falling debris 14936 | -6/Garrison | System corruption reached 10% 14967 | -6/Garrison | Lost 3 parts (2u1w) 15081 | -6/Garrison | Expanded RIF knowledge: Command Fork 15266 | -6/Garrison | Found embedded Infiltrators 15296 | -6/Garrison | Garrison Relay disabled 15316 | -6/Garrison | Build established: Botlord-Tank 15351 | -6/Garrison | Entered Factory 15351 | -5/Factory | Accompanied by 3 allies 15351 | -5/Factory | Evolved 2 slots: Utility x2 15596 | -5/Factory | Fabricated Gamma Bomb Array (x1) 15628 | -5/Factory | Discovered new exit (range 4) 16420 | -5/Factory | P-70 Sage assimilated allied Slayer 6a 16840 | -5/Factory | Spotted B-75 Beast 16893 | -5/Factory | First assault squad dispatched 17063 | -5/Factory | System corruption reached 10% 17067 | -5/Factory | Core integrity fell below 50% 17095 | -5/Factory | Lost 10 parts (1p2n4u3w) 17294 | -5/Factory | Discovered new exit (range 20) 17296 | -5/Factory | Build established: Botlord-Mutant 17403 | -5/Factory | Lost 4 parts (1p1n1u1w) 17479 | -5/Factory | Entered another Factory area 17479 | -4/Factory | Evolved 2 slots: Power x1, Propulsion x1 17662 | -4/Factory | Build established: Mutant 17861 | -4/Factory | Lost 3 parts (1u2w) 17908 | -4/Factory | Lost 3 parts (1p1n1u) 18188 | -4/Factory | Self-destructed Last Messages --------------- 17965_ System corrupted: Matter fused (-10). 17983_ ALERT: Security rotation in progress. 17999_ Acquired Imp. Antigrav System. 18013_ Acquired Unknown Device. 18013_ Identified Adv. Transmission Jammer. 18046_ System corrupted: Matter fused (-9). 18071_ Dropped Huge Storage Unit. 18071_ Dropped Flail. 18073_ Dropped Rnf. Fission Core. 18126_ System corrupted: Heat flow error (+240). 18141_ Acquired Nuclear Pulse Thruster. 18152_ Acquired Relay Coupler [Grunt]. 18154_ Acquired Relay Coupler [NC]. 18157_ B SAQL43Z 35EGJL4VL3PGT5GOW9G56 S& 18157_ Acquired Prototype Energy Cannon. 18157_ Identified Hvy. Neutron Cannon. 18161_ System Restoration Module purges 1% system corruption (6%). 18161_ Acquired 41 matter. 18179_ System Restoration Module purges 1% system corruption (5%). 18182_ Imp. Antigrav System destroyed. Map ----- +----------------------------------------------------+ | ?????????????????????????????????????????????????? | | ???????????????????????###############???????????? | | ???????????????????????# !!!]!!] #???????????? | | ???????????????????????#!""" /!] """ #???????????? | | ???????????????????###?#!""" ! """ #?????#####?? | | ???????????????????? ## """* """ ####### ### | | ????????????????????# ## / % | | ???????????????????## ## # ##### ### | | ???????????????????# ############### #???#####?? | | ???????????????????+ #??????# #?????????? | | ???????????????????# ! ###### #??????# #?????????? | | ???????????????????## ##????# #??????# #?????????? | | ????????????????????# #?????# ######## #?????????? | | ????????????????????# #?????# #"""""## #?????????? | | ?????????????????####/####### #""T""## #?????????? | | ?????????????????# + ! #?????????? | | ?????????????????# ## #?????????? | | ?????????????????# ## #?????????? | | ?????????????????# ! ## #?????????? | | ?????????????????# ## """ """ #?????????? | | ?????????????????########## """ """ #?????????? | | ?????????????????????# # """ """ #?????????? | | ?????????????????????#"" # #?????????? | | ?????????????????????#"T # """ """ ####+##?#?? | | ?????????????????????#"" # """ """ ?? | | ?????????????????????# @# """ """ ? | | ?????????????????????# # ? | | ?????????????????????# s# ? | | ?????????????????????# + ? | | ?????????????????????# ##"T"####### ########??? | | ?????????????????????###########?????? #?????????? | | ??????????????????????????????????????+#?????????? | | ?????????????????????????????????????????????????? | | ?????????????????????????????????????????????????? | | ?????????????????????????????????????????????????? | | ?????????????????????????????????????????????????? | | ?????????????????????????????????????????????????? | | ?????????????????????????????????????????????????? | | ?????????????????????????????????????????????????? | | ?????????????????????????????????????????????????? | | ?????????????????????????????????????????????????? | | ?????????????????????????????????????????????????? | | ?????????????????????????????????????????????????? | | ?????????????????????????????????????????????????? | | ?????????????????????????????????????????????????? | | ?????????????????????????????????????????????????? | | ?????????????????????????????????????????????????? | | ?????????????????????????????????????????????????? | | ?????????????????????????????????????????????????? | | ?????????????????????????????????????????????????? | +----------------------------------------------------+ Best States ------------- Heat Dissipation 67 Energy Generation 21 Energy Capacity 325 Matter Stores 300 Matter Capacity 300 Sight Range 22 Robot Scan Range 14 Terrain Scan Density 10 Jamming Range 16 Armor Coverage 600 Resistance: EX 50 Evasion (%) 62 Targeting Accuracy 8 Recoil Reduction 4 Defensive Hacking 12 Relay Coupler Types 3 Relay Coupler Value 129 Item Schematics ----------------- Seismic Detector | -9/Materials | Scanalyzed Adv. Targeting Computer | -8/Materials | Scanalyzed Rocket Launcher | -8/Materials | Scanalyzed Huge Storage Unit | -7/Factory | Scanalyzed Robot Schematics ------------------ None Fabricated ------------ Gamma Bomb Array | x1 | -5/Factory | Preloaded Alien Tech Used ----------------- None Achievements -------------- None Challenges ------------ None Game ------ Seed ActiveAerolevChip Manual? 0 Play Time 01:39:37 Cumulative 168.6 hours Start 2024.02.05 @ 09:13:03 End 2024.02.05 @ 10:54:04 Sessions 1 Manual Loads 0 Difficulty Rogue Special Mode None Game No. 149 Rogue 149 Adventurer 0 Explorer 0 Win Type - Total 2 Types 2/0/0/0/0/0/0/0/0 Lore% 59 Gallery% 69 Achievement% 58 Wizard Run 0 Options --------- ASCII 0 Keyboard 1 Movement Numpad Keybinds 0 Fullscreen 2 Font 18/SmallcapsGlow Map View 76x50 Tactical HUD 1 Map Filters NONE Filters NONE Steam 1 RUN: 8c43194e-0dec-4de8-beb5-d223b483382c